bitfinex/quotes_BTCUSD_20241123
["timestamp","ask_amount","ask_price","bid_price","bid_amount"]
[1732380367891,0.10665934,97606.0,97605.0,0.58209501]
[1732380367895,0.1891523,97606.0,97605.0,0.58209501]
[1732380367896,0.10665934,97606.0,97605.0,0.67370974]
[1732380368118,0.00464507,97606.0,97605.0,0.58209501]
[1732380368572,0.00464507,97606.0,97605.0,0.73209501]
[1732380369083,0.00550407,97606.0,97605.0,0.73209501]
[1732380369310,0.00550407,97606.0,97605.0,1.00686639]
[1732380369558,0.00550407,97606.0,97605.0,0.73209501]
[1732380370018,0.00550407,97606.0,97605.0,0.29978948]
[1732380370493,0.00550407,97606.0,97605.0,0.44978948]
[1732380371894,0.00050407,97606.0,97605.0,0.44978948]
[1732380372597,0.00050407,97606.0,97605.0,0.03756386]
[1732380372817,0.00050407,97606.0,97605.0,0.18756386]
[1732380373823,0.2,97648.0,97605.0,0.18756386]
[1732380373824,0.0008579,97651.0,97647.0,0.15]
[1732380374785,0.0007221,97651.0,97650.0,0.002]
[1732380375018,0.0007221,97651.0,97650.0,0.33481427]
[1732380375266,0.0007221,97651.0,97650.0,0.33281427]
[1732380375523,0.0008583,97690.0,97681.0,0.15]
[1732380375997,0.0008583,97690.0,97683.0,0.09130736]
[1732380376229,0.0008583,97690.0,97681.0,0.15]
[1732380376975,0.0008583,97690.0,97683.0,0.09130736]
[1732380377207,0.0008583,97690.0,97680.0,0.15]
[1732380377449,0.0008583,97690.0,97680.0,0.16275461]
[1732380377680,0.0008583,97690.0,97681.0,0.15]
[1732380379877,0.0008583,97690.0,97680.0,0.16275461]
[1732380379878,0.0008583,97690.0,97680.0,0.00652849]
[1732380380126,0.0008583,97690.0,97670.0,0.16275461]
[1732380380127,0.10287257,97690.0,97670.0,0.16275461]
[1732380380364,0.00127961,97689.0,97665.0,0.0410673]
[1732380380599,0.00127961,97689.0,97662.0,0.04180983]
[1732380381070,0.00127961,97689.0,97661.0,0.11750704]
[1732380381536,0.00127961,97689.0,97661.0,0.041221]
[1732380381773,0.10287257,97690.0,97662.0,0.002]
[1732380382011,0.10287257,97690.0,97662.0,0.15]
[1732380382244,0.10287257,97690.0,97661.0,0.11950704]
[1732380382245,0.0008583,97690.0,97671.0,0.15]
[1732380382473,0.0008583,97690.0,97672.0,0.00076703]
[1732380382705,0.0008583,97690.0,97671.0,0.15]
[1732380382706,0.0008583,97690.0,97673.0,0.00076703]
[1732380383203,0.0008583,97690.0,97681.0,0.15]
[1732380384377,0.0008583,97690.0,97676.0,0.04246861]
[1732380384838,0.0008583,97690.0,97671.0,0.15]
[1732380385076,0.0008583,97690.0,97671.0,0.25201427]
[1732380385535,0.0008583,97690.0,97673.0,0.15]
[1732380385747,0.0008583,97690.0,97675.0,0.15]
[1732380385994,0.0008583,97690.0,97675.0,0.25201427]
[1732380387392,0.0008583,97690.0,97665.0,0.19232354]
[1732380387636,0.0008583,97690.0,97667.0,0.15]
[1732380387878,0.0008583,97690.0,97668.0,0.10201427]
[1732380388118,0.0008583,97690.0,97669.0,0.15]
[1732380388362,0.0008583,97690.0,97671.0,0.15]
[1732380388579,0.0008583,97690.0,97681.0,0.15]
[1732380389034,0.0008583,97690.0,97680.0,0.16275461]
[1732380389035,0.0008583,97690.0,97683.0,0.15]
[1732380389830,0.0008583,97690.0,97680.0,0.16275461]
[1732380390063,0.0008583,97690.0,97680.0,0.26676888]
[1732380390503,0.0008583,97690.0,97680.0,0.26476888]
[1732380390740,0.0008583,97690.0,97683.0,0.002]
[1732380391228,0.0008583,97690.0,97680.0,0.30686851]
[1732380391452,0.0008583,97690.0,97684.0,0.002]
[1732380391712,0.0008583,97690.0,97686.0,0.002]
[1732380391946,0.0008583,97690.0,97684.0,0.002]
[1732380392472,0.0008583,97690.0,97685.0,0.00067297]
[1732380392707,0.0008583,97690.0,97683.0,0.15]
[1732380392948,0.0008583,97690.0,97686.0,0.002]
[1732380393178,0.0008583,97704.0,97686.0,0.002]
[1732380393411,0.0008583,97704.0,97690.0,0.16275461]
[1732380393647,0.0008583,97704.0,97691.0,0.15]
[1732380394581,0.0008583,97704.0,97692.0,0.00067297]
[1732380395061,0.0008583,97704.0,97691.0,0.09]
[1732380395291,0.0006085,97705.0,97687.0,0.0798]
[1732380395758,0.0006085,97705.0,97687.0,0.12128839]
[1732380395987,0.0006085,97705.0,97688.0,0.00067294]
[1732380396456,0.0006085,97705.0,97687.0,0.12128839]
[1732380396693,0.0006085,97705.0,97688.0,0.15067294]
[1732380397169,0.0006085,97705.0,97688.0,0.15]
[1732380398507,0.0006085,97705.0,97687.0,0.04148839]
[1732380399010,0.0006085,97705.0,97673.0,0.15]
[1732380399011,0.00188788,97705.0,97673.0,0.15]
[1732380399266,0.00188788,97705.0,97676.0,0.04191935]
[1732380399267,0.10329365,97704.0,97676.0,0.04191935]
[1732380399503,0.10329365,97704.0,97673.0,0.15]
[1732380399746,0.10329365,97704.0,97673.0,0.19230082]
[1732380399960,0.10329365,97704.0,97673.0,0.04230082]
[1732380400449,0.10329365,97704.0,97672.0,0.15]
[1732380401412,0.10329365,97704.0,97671.0,0.0409582]
[1732380401911,0.10329365,97704.0,97661.0,0.0798]
[1732380402135,0.18578661,97704.0,97662.0,0.27501427]
[1732380402373,0.18578661,97704.0,97662.0,0.15]
[1732380402374,0.08249296,97702.0,97662.0,0.15]
[1732380402670,0.17658726,97701.0,97662.0,0.15]
[1732380402875,0.17658726,97701.0,97661.0,0.04128143]
[1732380402876,0.08249296,97690.0,97661.0,0.04128143]
[1732380403122,0.10329398,97689.0,97677.0,0.0017166]
[1732380405703,0.09744216,97689.0,97677.0,0.0017166]
[1732380406647,0.07697516,97689.0,97677.0,0.0017166]
[1732380406868,0.06351285,97689.0,97677.0,0.0017166]
[1732380409830,0.06351285,97689.0,97680.0,0.15]
[1732380410046,0.06351285,97689.0,97677.0,0.0017166]
[1732380410272,0.00127971,97689.0,97677.0,0.0017166]
[1732380410548,0.08249296,97696.0,97680.0,0.15]
[1732380410744,0.10329383,97695.0,97680.0,0.15]
[1732380411435,0.10329383,97695.0,97677.0,0.04240615]
[1732380411917,0.10329383,97695.0,97677.0,0.0017166]
[1732380412136,0.18578679,97695.0,97677.0,0.0017166]
[1732380412814,0.10329383,97695.0,97677.0,0.0017166]
[1732380413085,0.08249296,97692.0,97677.0,0.0017166]
[1732380413340,0.10828162,97700.0,97677.0,0.0017166]
[1732380413341,0.08249296,97689.0,97677.0,0.0017166]
[1732380413552,0.10329398,97688.0,97677.0,0.0017166]
[1732380415888,0.08249296,97686.0,97677.0,0.0017166]
[1732380416133,0.18578706,97685.0,97641.0,0.173]
[1732380416376,0.08249296,97681.0,97642.0,0.10201427]
[1732380416620,0.0008583,97689.0,97640.0,0.04056901]
[1732380416621,0.08249296,97677.0,97640.0,0.04056901]
[1732380416857,0.14849413,97680.0,97640.0,0.04056901]
[1732380416858,0.08249296,97669.0,97640.0,0.04056901]
[1732380417070,0.10828162,97670.0,97639.0,0.04043224]
[1732380417071,0.08249296,97667.0,97639.0,0.04043224]
[1732380417293,0.08249296,97661.0,97639.0,0.04043224]
[1732380417512,0.08249296,97657.0,97616.0,0.0773]
[1732380417759,0.10329445,97656.0,97617.0,0.10201427]
[1732380417982,0.08249296,97653.0,97617.0,0.10201427]
[1732380418214,0.10329444,97652.0,97617.0,0.10201427]
[1732380418441,0.1857874,97652.0,97616.0,0.04134823]
[1732380418899,0.1857874,97652.0,97610.0,0.09062141]
[1732380419131,0.1857874,97652.0,97620.0,0.16262991]
[1732380419613,0.1857874,97652.0,97631.0,0.15]
[1732380419844,0.1857874,97652.0,97621.0,0.173]
[1732380420291,0.1857874,97652.0,97623.0,0.023]
[1732380420526,0.1857874,97652.0,97621.0,0.26362141]
[1732380420740,0.1857874,97652.0,97631.0,0.15]
[1732380420999,0.0779,97657.0,97641.0,0.15]
[1732380421235,0.00128005,97656.0,97641.0,0.15]
[1732380422166,0.0452,97660.0,97642.0,0.00067452]
[1732380422411,0.14721427,97660.0,97651.0,0.15]
[1732380422631,0.00128002,97659.0,97651.0,0.15]
[1732380422847,0.14721427,97660.0,97651.0,0.15]
[1732380423070,0.00128002,97659.0,97651.0,0.15]
[1732380423289,0.10201427,97658.0,97651.0,0.15]
[1732380423539,0.00128011,97657.0,97634.0,0.04146139]
[1732380423767,0.00128011,97657.0,97625.0,0.023]
[1732380423768,0.10201427,97656.0,97625.0,0.15]
[1732380424016,0.10201427,97656.0,97631.0,0.15]
[1732380424017,0.00128024,97655.0,97631.0,0.15]
[1732380424236,0.10329451,97654.0,97631.0,0.15]
[1732380424897,0.12769296,97660.0,97641.0,0.15]
[1732380424898,0.08249296,97659.0,97641.0,0.15]
[1732380425130,0.10329435,97658.0,97641.0,0.15]
[1732380425356,0.00128008,97658.0,97641.0,0.15]
[1732380425608,0.0452,97660.0,97642.0,0.023]
[1732380425890,0.0452,97660.0,97649.0,0.15]
[1732380426178,0.00127994,97659.0,97649.0,0.15]
[1732380426400,0.0452,97660.0,97649.0,0.15]
[1732380426401,0.00128003,97658.0,97649.0,0.15]
[1732380426632,0.08249296,97657.0,97649.0,0.15]
[1732380426845,0.18578737,97656.0,97631.0,0.09137513]
[1732380427075,0.18578737,97656.0,97629.0,0.15]
[1732380427076,0.08249296,97652.0,97630.0,0.023]
[1732380427333,0.08249296,97650.0,97628.0,0.09137513]
[1732380427588,0.08249296,97650.0,97620.0,0.16262991]
[1732380427589,0.12205808,97649.0,97622.0,0.09137513]
[1732380427852,0.12205808,97649.0,97620.0,0.16262991]
[1732380427853,0.01876352,97648.0,97621.0,0.09137513]
[1732380428124,0.10329458,97647.0,97617.0,0.67351182]
[1732380428386,0.0454,97645.0,97621.0,0.15]
[1732380428605,0.1220581,97644.0,97640.0,0.0017174]
[1732380428840,0.10329458,97644.0,97640.0,0.0017174]
[1732380429559,0.10329458,97644.0,97631.0,0.15]
[1732380429845,0.10329458,97644.0,97621.0,0.023]
[1732380430086,0.10329458,97644.0,97630.0,0.16262991]
[1732380430329,0.08249296,97643.0,97617.0,0.67351182]
[1732380430570,0.08249296,97635.0,97617.0,0.67351182]
[1732380430809,0.08249296,97626.0,97617.0,0.67351182]
[1732380431029,0.12205986,97625.0,97617.0,0.67351182]
[1732380431284,0.01876507,97624.0,97617.0,0.67351182]
[1732380431520,0.14869481,97623.0,97617.0,0.67351182]
[1732380433017,0.0816,97634.0,97618.0,0.023]
[1732380433253,0.0816,97634.0,97620.0,0.16262991]
[1732380433254,0.00128034,97633.0,97620.0,0.16262991]
[1732380433503,0.00128034,97633.0,97621.0,0.023]
[1732380433720,0.10201427,97632.0,97620.0,0.16262991]
[1732380433952,0.10201427,97632.0,97617.0,0.67351182]
[1732380433953,0.00128042,97631.0,97617.0,0.67351182]
[1732380434191,0.08249296,97626.0,97617.0,0.67351182]
[1732380434445,0.08249296,97624.0,97617.0,0.67351182]
[1732380434686,0.0451,97627.0,97617.0,0.67351182]
[1732380434687,0.08249296,97621.0,97617.0,0.67351182]
[1732380434921,0.10329484,97620.0,97617.0,0.67351182]
[1732380435417,0.18450723,97618.0,97617.0,0.67351182]
[1732380435652,0.20451908,97618.0,97617.0,0.67351182]
[1732380435902,0.20451699,97618.0,97617.0,0.67351182]
[1732380436154,0.23448109,97618.0,97617.0,0.67351182]
[1732380436390,0.23320043,97618.0,97617.0,0.67351182]
[1732380437834,0.12074337,97618.0,97617.0,0.67351182]
[1732380438320,0.10329478,97618.0,97617.0,0.67351182]
[1732380438550,0.12200014,97618.0,97617.0,0.67351182]
[1732380438783,0.18578774,97618.0,97617.0,0.67351182]
[1732380439016,0.18450723,97618.0,97617.0,0.67351182]
[1732380439242,0.10201427,97618.0,97617.0,0.67351182]
[1732380439471,0.18450723,97618.0,97617.0,0.67351182]
[1732380440901,0.18450723,97618.0,97617.0,0.67522962]
[1732380441388,0.20929296,97619.0,97617.0,0.67522962]
[1732380441631,0.31130723,97619.0,97617.0,0.67522962]
[1732380442107,0.22960723,97619.0,97617.0,0.67522962]
[1732380443090,0.18578776,97618.0,97617.0,0.67522962]
[1732380443557,0.26748776,97618.0,97617.0,0.67522962]
[1732380443782,0.26620723,97618.0,97617.0,0.67522962]
[1732380444028,0.31130723,97618.0,97617.0,0.67522962]
[1732380450307,0.31130723,97618.0,97617.0,0.62522962]
[1732380450772,0.5300386,97618.0,97617.0,0.62522962]
[1732380451240,0.5300386,97618.0,97617.0,0.16553958]
[1732380451476,0.5320386,97618.0,97617.0,0.16553958]
[1732380451706,0.5300386,97618.0,97617.0,0.16553958]
[1732380451928,0.56001737,97618.0,97617.0,0.16553958]
[1732380452393,0.36001737,97618.0,97617.0,0.16553958]
[1732380452634,0.56001737,97618.0,97617.0,0.16553958]
[1732380452905,0.5300386,97618.0,97617.0,0.16553958]
[1732380453597,0.3300386,97618.0,97617.0,0.16553958]
[1732380454068,0.7300386,97618.0,97617.0,0.16553958]
[1732380454795,0.7320386,97618.0,97617.0,0.16553958]
[1732380455523,0.7300386,97618.0,97617.0,0.16553958]
[1732380455766,0.73004737,97618.0,97617.0,0.16553958]
[1732380456217,0.72138137,97618.0,97617.0,0.16553958]
[1732380456438,0.08249296,97584.0,97582.0,0.0017166]
[1732380456673,0.08249296,97583.0,97582.0,0.0247166]
[1732380456922,0.16420693,97583.0,97582.0,0.0247166]
[1732380457383,0.16002293,97583.0,97582.0,0.0017166]
[1732380458094,0.16002293,97583.0,97560.0,0.1084594]
[1732380458095,0.06219266,97577.0,97560.0,0.1084594]
[1732380458319,0.10329542,97576.0,97560.0,0.1084594]
[1732380458541,0.10329542,97576.0,97561.0,0.173]
[1732380459896,0.10201427,97576.0,97561.0,0.173]
[1732380460359,0.06219266,97573.0,97561.0,0.173]
[1732380460646,0.10201427,97572.0,97561.0,0.173]
[1732380461310,0.16420693,97572.0,97561.0,0.173]
[1732380461804,0.06219266,97576.0,97561.0,0.173]
[1732380462091,0.06219266,97574.0,97571.0,0.023]
[1732380462324,0.06219266,97574.0,97567.0,0.15]
[1732380462325,0.22771427,97573.0,97568.0,0.023]
[1732380462556,0.22771427,97573.0,97542.0,0.0017174]
[1732380462557,0.06219266,97561.0,97542.0,0.0017174]
[1732380462788,0.10329564,97560.0,97542.0,0.0017174]
[1732380463016,0.1654883,97560.0,97542.0,0.0017174]
[1732380464457,0.1654883,97560.0,97544.0,0.023]
[1732380465385,0.1654883,97560.0,97544.0,0.0238589]
[1732380465868,0.16420693,97560.0,97544.0,0.0238589]
[1732380466763,0.00128135,97559.0,97544.0,0.0238589]
[1732380466984,0.10201427,97558.0,97544.0,0.0238589]
[1732380467247,0.00128135,97557.0,97544.0,0.0238589]
[1732380467487,0.10329562,97557.0,97544.0,0.0238589]
[1732380467712,0.10201427,97557.0,97544.0,0.0238589]
[1732380468416,0.10201427,97557.0,97542.0,0.023]
[1732380468646,0.10201427,97557.0,97540.0,0.01456128]
[1732380468877,0.06219266,97560.0,97540.0,0.01456128]
[1732380469104,0.06219266,97560.0,97550.0,0.1084594]
[1732380470041,0.06219266,97562.0,97550.0,0.1084594]
[1732380470266,0.06219266,97560.0,97550.0,0.1909594]
[1732380470488,0.06219266,97560.0,97551.0,0.023]
[1732380470983,0.00128122,97578.0,97551.0,0.173]
[1732380471214,0.0465,97593.0,97568.0,0.1084594]
[1732380471215,0.06219266,97584.0,97568.0,0.1084594]
[1732380471461,0.06219266,97586.0,97569.0,0.173]
[1732380471689,0.00128093,97604.0,97569.0,0.173]
[1732380471920,0.06219266,97590.0,97569.0,0.173]
[1732380472175,0.00128093,97604.0,97569.0,0.173]
[1732380472445,0.06219266,97586.0,97569.0,0.173]
[1732380473439,0.00128093,97604.0,97569.0,0.0640049]
[1732380473440,0.06219266,97584.0,97569.0,0.0640049]
[1732380473633,0.00128093,97604.0,97555.0,0.1820904]
[1732380473634,0.06219266,97578.0,97556.0,0.0910452]
[1732380473902,0.06219266,97575.0,97555.0,0.0910452]
[1732380474124,0.06219266,97575.0,97551.0,0.15]
[1732380474125,0.00128112,97574.0,97551.0,0.15]
[1732380474382,0.06219266,97575.0,97561.0,0.15]
[1732380474605,0.00128112,97574.0,97561.0,0.15]
[1732380475538,0.06219266,97569.0,97561.0,0.15]
[1732380475766,0.00128111,97582.0,97562.0,0.023]
[1732380475767,0.06219266,97568.0,97562.0,0.023]
[1732380476732,0.06219266,97568.0,97557.0,0.173]
[1732380476953,0.06219266,97568.0,97557.0,0.023]
[1732380477178,0.06219266,97568.0,97557.0,0.2640452]
[1732380477440,0.06219266,97568.0,97557.0,0.173]
[1732380477670,0.00128113,97567.0,97557.0,0.173]
[1732380478117,0.06219266,97568.0,97551.0,0.1365678]
[1732380478566,0.0012812,97567.0,97552.0,0.1365678]
[1732380478791,0.0012812,97567.0,97550.0,0.1084594]
[1732380478792,0.06219266,97558.0,97550.0,0.1365678]
[1732380479018,0.06219266,97558.0,97547.0,0.1365678]
[1732380479242,0.10329556,97557.0,97547.0,0.1365678]
[1732380479468,0.10201427,97557.0,97544.0,0.0008593]
[1732380479696,0.00128132,97556.0,97544.0,0.0008593]
[1732380479944,0.10201427,97555.0,97544.0,0.0008593]
[1732380480222,0.00128142,97554.0,97544.0,0.0008593]
[1732380481250,0.10329569,97554.0,97544.0,0.0008593]
[1732380481479,0.16548835,97554.0,97544.0,0.0008593]
[1732380482382,0.06219266,97548.0,97544.0,0.0008593]
[1732380482619,0.00128149,97547.0,97544.0,0.0008593]
[1732380482849,0.00128149,97547.0,97535.0,0.0094094]
[1732380483111,0.00128149,97547.0,97534.0,0.04118821]
[1732380483391,0.00128149,97547.0,97530.0,0.1084594]
[1732380483623,0.06219266,97545.0,97533.0,0.04400534]
[1732380483960,0.10329582,97544.0,97533.0,0.0017174]
[1732380484443,0.10201427,97544.0,97533.0,0.0017174]
[1732380485617,0.06219266,97545.0,97533.0,0.0017174]
[1732380485875,0.06219266,97547.0,97534.0,0.023]
[1732380486106,0.025,97560.0,97538.0,0.023]
[1732380486107,0.06219266,97548.0,97538.0,0.023]
[1732380486394,0.06219266,97559.0,97540.0,0.173]
[1732380486623,0.06219266,97559.0,97550.0,0.1084594]
[1732380486857,0.06219266,97559.0,97553.0,0.023]
[1732380487307,0.06219266,97559.0,97552.0,0.023]
[1732380487545,0.025,97560.0,97552.0,0.023]
[1732380487546,0.025,97560.0,97552.0,0.20584748]
[1732380487847,0.025,97560.0,97559.0,0.173]
[1732380487848,0.02129775,97560.0,97559.0,0.173]
[1732380488069,0.01783693,97560.0,97559.0,0.27501427]
[1732380488317,0.01783693,97560.0,97559.0,0.30432708]
[1732380488546,0.01783693,97560.0,97559.0,0.27501427]
[1732380489233,0.01783693,97560.0,97559.0,0.30433539]
[1732380489462,0.0465,97596.0,97559.0,0.30433539]
[1732380489463,0.0465,97596.0,97588.0,0.46605181]
[1732380489692,0.0465,97596.0,97560.0,0.1084594]
[1732380489693,0.10329508,97595.0,97594.0,0.09144463]
[1732380489931,0.10329508,97595.0,97582.0,0.22861159]
[1732380489932,0.10329508,97595.0,97590.0,0.09144463]
[1732380490411,0.10329508,97595.0,97588.0,0.09144463]
[1732380490414,0.10329508,97595.0,97587.0,0.09144463]
[1732380490657,0.10329508,97595.0,97588.0,0.09144463]
[1732380490914,0.10329508,97595.0,97579.0,0.18288927]
[1732380490915,0.10329508,97595.0,97587.0,0.09144463]
[1732380491147,0.10329508,97595.0,97579.0,0.18288927]
[1732380491148,0.10329508,97595.0,97588.0,0.09144463]
[1732380491399,0.10329508,97595.0,97587.0,0.09144463]
[1732380491675,0.10329508,97595.0,97579.0,0.33288927]
[1732380491676,0.10329508,97595.0,97588.0,0.09144463]
[1732380491934,0.10329508,97595.0,97590.0,0.09144463]
[1732380492452,0.10329508,97595.0,97591.0,0.09144463]
[1732380492692,0.10329508,97595.0,97579.0,0.37861159]
[1732380492693,0.10329508,97595.0,97593.0,0.08840579]
[1732380492921,0.10329508,97595.0,97589.0,0.13720175]
[1732380493146,0.10329508,97595.0,97587.0,0.13720175]
[1732380493382,0.10329508,97595.0,97583.0,0.13720175]
[1732380493616,0.10329508,97595.0,97582.0,0.28720175]
[1732380493847,0.10329508,97595.0,97583.0,0.13720175]
[1732380494084,0.10329508,97595.0,97582.0,0.15]
[1732380494085,0.10329508,97595.0,97585.0,0.13720175]
[1732380494365,0.10329508,97595.0,97587.0,0.13720175]
[1732380494632,0.10329508,97595.0,97591.0,0.13720175]
[1732380494890,0.10329508,97595.0,97582.0,0.15]
[1732380494891,0.10201427,97595.0,97592.0,0.13720175]
[1732380495134,0.0787,97602.0,97593.0,0.18288927]
[1732380495386,0.10201427,97594.0,97590.0,0.22872967]
[1732380495637,0.0012809,97593.0,97589.0,0.22872967]
[1732380495888,0.10201427,97592.0,97591.0,0.22872967]
[1732380496177,0.10201427,97592.0,97580.0,0.0964533]
[1732380496178,0.10201427,97592.0,97590.0,0.18299465]
[1732380496432,0.10201427,97592.0,97591.0,0.13725602]
[1732380496433,0.09701427,97592.0,97591.0,0.13725602]
[1732380496718,0.09701427,97592.0,97589.0,0.13726633]
[1732380496949,0.00128093,97591.0,97587.0,0.13726633]
[1732380497180,0.10201427,97590.0,97586.0,0.13726633]
[1732380497410,0.10201427,97590.0,97550.0,0.23]
[1732380497411,0.00128095,97589.0,97584.0,0.13726633]
[1732380497643,0.10201427,97588.0,97579.0,0.13726633]
[1732380497895,0.10201427,97588.0,97550.0,0.23]
[1732380497896,0.00128104,97587.0,97577.0,0.13726633]
[1732380498129,0.00128104,97587.0,97572.0,0.13726633]
[1732380498130,0.0787,97585.0,97572.0,0.13726633]
[1732380498368,0.10329542,97584.0,97572.0,0.13726633]
[1732380498611,0.10329542,97584.0,97571.0,0.13726633]
[1732380499360,0.10329542,97584.0,97574.0,0.13726633]
[1732380499594,0.0453,97586.0,97570.0,0.0964533]
[1732380499595,0.0787,97608.0,97576.0,0.28726633]
[1732380499809,0.10201427,97607.0,97598.0,0.0964533]
[1732380500040,0.0787,97608.0,97585.0,0.13726633]
[1732380500041,0.10201427,97606.0,97585.0,0.13726633]
[1732380500268,0.10201427,97606.0,97565.0,0.15]
[1732380500269,0.10201427,97606.0,97595.0,0.13726633]
[1732380500504,0.10201427,97606.0,97589.0,0.13726633]
[1732380500743,0.10201427,97606.0,97594.0,0.13726633]
[1732380500968,0.10201427,97606.0,97596.0,0.13726633]
[1732380501198,0.0787,97619.0,97591.0,0.173]
[1732380501419,0.10201427,97617.0,97613.0,0.13724035]
[1732380501874,0.10201427,97617.0,97615.0,0.13724035]
[1732380502124,0.10201427,97617.0,97616.0,0.13724035]
[1732380502366,0.10201427,97617.0,97611.0,0.13724035]
[1732380502593,0.10201427,97617.0,97591.0,0.173]
[1732380502594,0.00128071,97616.0,97603.0,0.09144642]
[1732380502805,0.10201427,97615.0,97603.0,0.09144642]
[1732380503059,0.00128072,97614.0,97608.0,0.09144112]
[1732380503252,0.10201427,97613.0,97609.0,0.09144112]
[1732380503475,0.00128068,97612.0,97607.0,0.09144112]
[1732380503691,0.0787,97619.0,97606.0,0.09144112]
[1732380503692,0.10329496,97611.0,97606.0,0.09144112]
[1732380503922,0.10329496,97611.0,97609.0,0.09144112]
[1732380504630,0.10329496,97611.0,97561.0,0.002]
[1732380504631,0.0453,97610.0,97604.0,0.09144112]
[1732380504859,0.0453,97610.0,97582.0,0.15]
[1732380504860,0.10201427,97608.0,97602.0,0.09144112]
[1732380505098,0.10201427,97603.0,97592.0,0.09144112]
[1732380505329,0.0787,97608.0,97578.0,0.22854687]
[1732380505330,0.10201427,97596.0,97578.0,0.09144112]
[1732380505549,0.10201427,97586.0,97573.0,0.09144112]
[1732380505777,0.00128117,97585.0,97568.0,0.09144112]
[1732380505996,0.00128117,97585.0,97541.0,0.27432336]
[1732380505997,0.10329544,97585.0,97562.0,0.09144112]
[1732380506219,0.18199544,97585.0,97559.0,0.09144112]
[1732380506448,0.22729544,97585.0,97557.0,0.09144112]
[1732380506668,0.22729544,97585.0,97559.0,0.09144112]
[1732380506669,0.22601427,97585.0,97559.0,0.09144112]
[1732380506886,0.22601427,97585.0,97558.0,0.09144112]
[1732380507365,0.22601427,97585.0,97559.0,0.09144112]
[1732380508775,0.22601427,97585.0,97560.0,0.06030032]
[1732380509004,0.22601427,97585.0,97556.0,0.13716168]
[1732380509005,0.10201427,97583.0,97556.0,0.13716168]
[1732380509242,0.10201427,97578.0,97555.0,0.13716168]
[1732380509504,0.10201427,97565.0,97552.0,0.13716168]
[1732380509745,0.10201427,97561.0,97548.0,0.13716168]
[1732380509980,0.10201427,97561.0,97547.0,0.13716168]
[1732380509981,0.00128151,97560.0,97547.0,0.13716168]
[1732380510207,0.10201427,97559.0,97550.0,0.13716168]
[1732380510442,0.10201427,97559.0,97546.0,0.18278967]
[1732380510443,0.10201427,97556.0,97549.0,0.13716168]
[1732380510701,0.00128156,97555.0,97549.0,0.13716168]
[1732380510936,0.10201427,97554.0,97549.0,0.13716168]
[1732380511164,0.10201427,97554.0,97533.0,0.0017174]
[1732380511165,0.00128153,97553.0,97544.0,0.13716168]
[1732380511385,0.10201427,97551.0,97534.0,0.13716168]
[1732380511610,0.10201427,97551.0,97533.0,0.0017174]
[1732380511611,0.00128166,97550.0,97533.0,0.0017174]
[1732380511833,0.10201427,97549.0,97533.0,0.0017174]
[1732380512113,0.00128169,97548.0,97533.0,0.0017174]
[1732380512346,0.10201427,97547.0,97533.0,0.0017174]
[1732380512569,0.00128167,97546.0,97533.0,0.0017174]
[1732380512795,0.10329591,97545.0,97533.0,0.0017174]
[1732380513463,0.08808162,97545.0,97533.0,0.0017174]
[1732380514373,0.07718527,97545.0,97533.0,0.0017174]
[1732380515357,0.0812,97544.0,97533.0,0.0017174]
[1732380515602,0.10329598,97543.0,97533.0,0.0017174]
[1732380517177,0.10329598,97543.0,97524.0,0.08624392]
[1732380517405,0.10329598,97543.0,97524.0,0.023]
[1732380520548,0.10329598,97543.0,97523.0,0.1517174]
[1732380520549,0.10329598,97543.0,97523.0,0.0017174]
[1732380521430,0.10329598,97543.0,97523.0,0.09304359]
[1732380521643,0.10329598,97543.0,97523.0,0.0017174]
[1732380522606,0.1243,97542.0,97523.0,0.0017174]
[1732380522821,0.10329602,97541.0,97523.0,0.0017174]
[1732380530643,0.30329602,97541.0,97523.0,0.0017174]
[1732380531594,0.10329602,97541.0,97523.0,0.0017174]
[1732380531817,0.2,97540.0,97523.0,0.0017174]
[1732380532041,0.10329609,97539.0,97523.0,0.0017174]
[1732380532490,0.10329609,97539.0,97510.0,0.09744259]
[1732380532491,0.10329609,97539.0,97510.0,0.09658349]
[1732380532716,0.10329609,97539.0,97501.0,0.07668182]
[1732380532717,0.10329609,97539.0,97520.0,0.09658349]
[1732380532934,0.10329609,97539.0,97510.0,0.09658349]
[1732380534341,0.30329609,97539.0,97502.0,0.023]
[1732380534586,0.0759,97538.0,97502.0,0.023]
[1732380534839,0.10329609,97537.0,97501.0,0.19185181]
[1732380535334,0.10329609,97537.0,97501.0,0.04185181]
[1732380535839,0.10329609,97537.0,97498.0,0.04111699]
[1732380535840,0.30201427,97533.0,97498.0,0.04111699]
[1732380536062,0.0759,97530.0,97498.0,0.04111699]
[1732380536297,0.0759,97530.0,97490.0,0.09658349]
[1732380536298,0.10329624,97529.0,97490.0,0.09658349]
[1732380537277,0.10329624,97529.0,97491.0,0.15]
[1732380537510,0.10329624,97529.0,97500.0,0.09658349]
[1732380537808,0.10329624,97529.0,97510.0,0.09658349]
[1732380538055,0.2,97554.0,97493.0,0.15]
[1732380538056,0.00128175,97528.0,97519.0,0.09658349]
[1732380538273,0.07718174,97541.0,97519.0,0.09658349]
[1732380538508,0.10329598,97540.0,97519.0,0.09658349]
[1732380538728,0.10329598,97540.0,97520.0,0.00263578]
[1732380539693,0.10329598,97540.0,97510.0,0.09744299]
[1732380539694,0.10329598,97540.0,97516.0,0.04179951]
[1732380540172,0.10329598,97540.0,97510.0,0.10006867]
[1732380540638,0.10329598,97540.0,97510.0,0.0008595]
[1732380541311,0.10329598,97540.0,97511.0,0.00263578]
[1732380541792,0.0457,97539.0,97511.0,0.00263578]
[1732380542017,0.0457,97539.0,97510.0,0.0008595]
[1732380542018,0.0759,97537.0,97510.0,0.0008595]
[1732380542231,0.00128189,97536.0,97510.0,0.0008595]
[1732380542442,0.17291427,97537.0,97510.0,0.0008595]
[1732380542443,0.10329618,97535.0,97510.0,0.0008595]
[1732380543141,0.2457,97534.0,97510.0,0.0008595]
[1732380543371,0.10329618,97533.0,97510.0,0.0008595]
[1732380544273,0.10201427,97531.0,97510.0,0.0008595]
[1732380544503,0.10201427,97526.0,97510.0,0.0008595]
[1732380544722,0.00128206,97525.0,97510.0,0.0008595]
[1732380544938,0.10201427,97524.0,97510.0,0.0008595]
[1732380545168,0.04698205,97523.0,97510.0,0.0008595]
[1732380545404,0.17791427,97522.0,97510.0,0.0008595]
[1732380545616,0.00128206,97521.0,97510.0,0.0008595]
[1732380545836,0.10201427,97520.0,97510.0,0.0008595]
[1732380546043,0.00128206,97519.0,97510.0,0.0008595]
[1732380546251,0.10201427,97518.0,97510.0,0.0008595]
[1732380546466,0.00128206,97517.0,97510.0,0.0008595]
[1732380546682,0.10201427,97516.0,97510.0,0.0008595]